fUST/lending_fUST_20250719
["ID","MTS","AMOUNT","RATE_DAILY","PERIOD"]
[373305734,1752937849245,-189.555472,0.00023362,5]
[373305736,1752937849255,-3757.70909757,0.000234,2]
[373305738,1752937849265,-1000.0,0.000234,2]
[373305740,1752937849277,-1000.0,0.000234,2]
[373305742,1752937849286,-1000.0,0.000234,2]
[373305744,1752937849296,-1000.0,0.000234,2]
[373305746,1752937849306,-1000.0,0.000234,2]
[373305748,1752937849315,-1000.0,0.000234,2]
[373305750,1752937849326,-588.90600601,0.000234,2]
[373305753,1752937849340,-411.09399399,0.000234,2]
[373305755,1752937849350,-1000.0,0.000234,2]
[373305757,1752937849359,-1000.0,0.000234,2]
[373305759,1752937849369,-1000.0,0.000234,2]
[373305761,1752937849379,-1000.0,0.000234,2]
[373305763,1752937849389,-1000.0,0.000234,2]
[373305765,1752937849398,-1000.0,0.000234,2]
[373305767,1752937849408,-1000.0,0.000234,2]
[373305769,1752937849417,-1000.0,0.000234,2]
[373305771,1752937849427,-1000.0,0.000234,2]
[373305773,1752937849436,-1000.0,0.000234,2]
[373305775,1752937849447,-1000.0,0.000234,2]
[373305777,1752937849457,-1000.0,0.000234,2]
[373305779,1752937849467,-1000.0,0.000234,2]
[373305781,1752937849477,-1000.0,0.000234,2]
[373305782,1752937849487,-1000.0,0.000234,2]
[373305783,1752937849497,-1000.0,0.000234,2]
[373305784,1752937849507,-1000.0,0.000234,2]
[373305785,1752937849634,-1000.0,0.000234,2]
[373305786,1752937849646,-1000.0,0.000234,2]
[373305787,1752937849656,-1000.0,0.000234,2]
[373305788,1752937849668,-1000.0,0.000234,2]
[373305789,1752937849678,-1000.0,0.000234,2]
[373305790,1752937849688,-1000.0,0.000234,2]
[373305791,1752937849698,-1000.0,0.000234,2]
[373305792,1752937849708,-1000.0,0.000234,2]
[373305794,1752937849718,-1000.0,0.000234,2]
[373305796,1752937849727,-1000.0,0.000234,2]
[373305798,1752937849738,-1000.0,0.000234,2]
[373305800,1752937849748,-1000.0,0.000234,2]
[373305802,1752937849759,-1000.0,0.000234,2]
[373305804,1752937849769,-413.57292896,0.000234,2]
[373305806,1752937849786,-586.42707104,0.000234,2]
[373305808,1752937849796,-1000.0,0.000234,2]
[373305810,1752937849806,-1000.0,0.000234,2]
[373305812,1752937849816,-1000.0,0.000234,2]
[373305815,1752937849826,-1000.0,0.000234,2]
[373305817,1752937849836,-1000.0,0.000234,2]
[373305819,1752937849846,-1000.0,0.000234,2]
[373305821,1752937849855,-395.64018302,0.000234,2]
[373305823,1752937849867,-493.28256153,0.000234,2]
[373305832,1752937849948,-329.99917035,0.00017131,2]
[373305837,1752937849993,-130.00082965,0.00017131,2]
[373305839,1752937850003,-460.0,0.00017131,2]
[373305841,1752937850013,-710.18,0.00020419,2]
[373305843,1752937850023,-397.52429419,0.00020548,2]
[373305845,1752937850032,-710.18,0.00020693,2]
[373305848,1752937850043,-710.18,0.00020967,2]
[373305849,1752937850054,-397.52429419,0.0002172,2]
[373305852,1752937850063,-422.752,0.00021773,2]
[373305853,1752937850073,-416.784,0.00021773,2]
[373305855,1752937850082,-471.9,0.0002316,2]
[373305857,1752937850092,-111.07725545,0.000234,2]
[373305859,1752937850101,-1000.0,0.000234,2]
[373305861,1752937850111,-1000.0,0.000234,2]
[373305864,1752937850121,-1000.0,0.000234,2]
[373305865,1752937850130,-1000.0,0.000234,2]
[373305867,1752937850140,-1000.0,0.000234,2]
[373305870,1752937850150,-1000.0,0.000234,2]
[373305871,1752937850160,-1000.0,0.000234,2]
[373305873,1752937850174,-1000.0,0.000234,2]
[373305875,1752937850184,-1000.0,0.000234,2]
[373305877,1752937850195,-1000.0,0.000234,2]
[373305880,1752937850205,-1000.0,0.000234,2]
[373305882,1752937850214,-1000.0,0.000234,2]
[373305883,1752937850224,-1000.0,0.000234,2]
[373305885,1752937850234,-1000.0,0.000234,2]
[373305888,1752937850244,-1000.0,0.000234,2]
[373305890,1752937850254,-1000.0,0.000234,2]
[373305892,1752937850264,-1000.0,0.000234,2]
[373305894,1752937850273,-1000.0,0.000234,2]
[373305896,1752937850283,-1000.0,0.000234,2]
[373305898,1752937850293,-1000.0,0.000234,2]
[373305900,1752937850302,-1404.59,0.000234,2]
[373305902,1752937850312,-1000.0,0.000234,2]
[373305904,1752937850321,-1000.0,0.000234,2]
[373305906,1752937850331,-69852.41,0.000234,2]
[373305908,1752937850340,-151.0,0.000234,7]
[373305910,1752937850350,-151.0,0.000234,7]
[373305912,1752937850360,-151.0,0.000234,7]
[373305914,1752937850369,-151.0,0.000234,7]
[373305916,1752937850380,-183.826738,0.000234,7]
[373305918,1752937850389,-183.826738,0.000234,7]
[373305920,1752937850399,-151.255532,0.000234,7]
[373305922,1752937850408,-151.0,0.000234,7]
[373305924,1752937850420,-151.0,0.000234,7]
[373305925,1752937850430,-219.633511,0.000234,7]
[373305927,1752937850440,-407.352703,0.000234,7]
[373305929,1752937850450,-407.352703,0.000234,7]
[373305932,1752937850462,-151.0,0.000234,7]
[373305933,1752937850472,-151.0,0.000234,7]
[373305936,1752937850482,-276.85209,0.000234,7]
[373305938,1752937850491,-276.85209,0.000234,7]
[373305940,1752937850501,-279.522111,0.000234,7]
[373305942,1752937850511,-1466.910596,0.000234,7]
[373305944,1752937850521,-1466.910596,0.000234,7]
[373305946,1752937850530,-151.0,0.000234,7]
[373305948,1752937850540,-151.0,0.000234,7]
[373305950,1752937850549,-151.0,0.000234,7]
[373305952,1752937850559,-168.363423,0.000234,7]
[373305954,1752937850568,-306.912011,0.000234,7]
[373305956,1752937850578,-306.912011,0.000234,7]
[373305958,1752937850587,-168.363423,0.000234,7]
[373305960,1752937850597,-151.225761,0.000234,7]
[373305962,1752937850607,-151.0,0.000234,7]
[373305964,1752937850618,-986.18959625,0.00023408,2]
[373305966,1752937850628,-705.18445603,0.00023421,5]
[373305968,1752937850637,-1123.43575235,0.00023433,2]
[373305970,1752937850647,-962.88084004,0.00023433,2]
[373305972,1752937850659,-973.180329,0.00023433,2]
[373305974,1752937850673,-685.71,0.00023433,2]
[373305976,1752937850683,-1025.34,0.00023434,2]
[373305978,1752937850694,-491.48314903,0.00023434,2]
[373305980,1752937850703,-692.77,0.00023434,2]
[373305982,1752937850713,-471.9,0.00023434,2]
[373305984,1752937850723,-472.69770926,0.00023435,2]
[373305986,1752937850733,-514.0,0.00023442,2]
[373305988,1752937850743,-449.0,0.00023442,2]
[373305990,1752937850753,-151.0,0.00023452,7]
[373305992,1752937850762,-163.02906031,0.00023452,2]
[373305994,1752937850772,-164.22272003,0.00023452,2]
[373305996,1752937850781,-189.555472,0.00023459,6]
[373305998,1752937850791,-151.0,0.00023486,7]
[373306000,1752937850801,-4930.92456271,0.00023486,9]
[373306002,1752937850810,-1500.0,0.00023488,2]
[373306004,1752937850819,-160.0,0.00023497,5]
[373306006,1752937850828,-151.0,0.0002351,7]
[373306008,1752937850838,-151.0,0.0002351,7]
[373306010,1752937850847,-151.0,0.0002351,7]
[373306012,1752937850857,-500.0,0.00023515,2]
[373306014,1752937850867,-2200.0,0.00023515,2]
[373306016,1752937850877,-151.0,0.00023515,7]
[373306018,1752937850886,-151.0,0.00023515,7]
[373306020,1752937850896,-151.0,0.00023515,7]
[373306022,1752937850906,-450.0,0.00023562,2]
[373306024,1752937850915,-309.1156594,0.00023671,2]
[373306026,1752937850926,-153.0,0.00023671,2]
[373306028,1752937850935,-306.0,0.00023671,2]
[373306030,1752937850945,-153.0,0.00023671,2]
[373306032,1752937850954,-153.0,0.00023671,2]
[373306034,1752937850963,-153.0,0.00023671,2]
[373306036,1752937850972,-153.0,0.00023671,2]
[373306038,1752937850982,-153.0,0.00023671,2]
[373306040,1752937850991,-153.0,0.00023671,2]
[373306042,1752937851000,-153.0,0.00023671,2]
[373306044,1752937851009,-153.0,0.00023671,2]
[373306046,1752937851018,-153.0,0.00023671,2]
[373306048,1752937851028,-153.0,0.00023671,2]
[373306050,1752937851037,-153.7365877,0.00023671,2]
[373306052,1752937851046,-306.0,0.00023671,2]
[373306054,1752937851056,-1113.58926198,0.000237,30]
[373306056,1752937851066,-189.555472,0.000237,10]
[373306058,1752937851075,-1025.36,0.00023708,2]
[373306060,1752937851085,-692.83813802,0.00023708,2]
[373306062,1752937851094,-472.02279391,0.00023708,2]
[373306064,1752937851103,-514.0,0.00023716,2]
[373306066,1752937851113,-449.0,0.00023716,2]
[373306068,1752937851122,-306.0,0.00023726,2]
[373306070,1752937851130,-4930.92456271,0.00023728,9]
[373306072,1752937851139,-660.0,0.00023741,2]
[373306074,1752937851148,-189.555472,0.00023867,2]
[373306076,1752937851158,-1230.70155709,0.00023869,2]
[373306078,1752937851169,-1003.5032217,0.00023882,2]
[373306080,1752937851178,-2000.0,0.00023882,2]
[373306082,1752937851188,-2000.0,0.00023882,2]
[373306084,1752937851197,-709.17351774,0.000239,2]
[373306086,1752937851207,-600.0,0.00023904,2]
[373306088,1752937851217,-800.0,0.00023955,2]
[373306090,1752937851227,-677.682365,0.00023957,8]
[373306092,1752937851237,-151.0,0.00023957,7]
[373306094,1752937851247,-319.699455,0.00023957,7]
[373306096,1752937851256,-2188.9903492,0.00023962,2]
[373306098,1752937851266,-4930.92456271,0.00023969,10]
[373306100,1752937851275,-151.0,0.00023969,7]
[373306102,1752937851285,-514.0,0.0002399,2]
[373306104,1752937851294,-449.0,0.0002399,2]
[373306106,1752937851303,-3314.55871941,0.00024,3]
[373306108,1752937851313,-151.0,0.00024,7]
[373306110,1752937851322,-186.100072,0.00024,7]
[373306112,1752937851332,-210.572017,0.00024,7]
[373306114,1752937851341,-210.572017,0.00024,7]
[373306116,1752937851351,-151.0,0.00024,7]
[373306118,1752937851362,-189.555472,0.00024,7]
[373306120,1752937851371,-839.454303,0.00024,7]
[373306122,1752937851380,-839.454303,0.00024,10]
[373306124,1752937851390,-525.83049785,0.00024,7]
[373306126,1752937851399,-525.83049785,0.00024,10]
[373306128,1752937851409,-230.94145789,0.00024,7]
[373306130,1752937851421,-230.94145789,0.00024,10]
[373306132,1752937851431,-160.0,0.00024,7]
[373306134,1752937851440,-160.0,0.00024,10]
[373306136,1752937851450,-215.67360783,0.00024,7]
[373306138,1752937851460,-215.67360783,0.00024,10]
[373306140,1752937851469,-189.555472,0.00024024,5]
[373306142,1752937851479,-2000.0,0.00024036,2]
[373306144,1752937851489,-189.555472,0.00024054,3]
[373306146,1752937851498,-2188.9903492,0.00024062,2]
[373306148,1752937851508,-151.0,0.0002408,7]
[373306150,1752937851517,-306.912011,0.0002408,7]
[373306152,1752937851527,-306.912011,0.0002408,7]
[373306154,1752937851536,-14664.43704174,0.00024088,2]
[373306156,1752937851546,-151.0,0.00024088,7]
[373306158,1752937851555,-151.0,0.00024088,7]
[373306160,1752937851564,-151.0,0.00024088,7]
[373306162,1752937851574,-151.0,0.00024088,7]
[373306164,1752937851583,-13357.9,0.000241,7]
[373306166,1752937851592,-151.0,0.000241,7]
[373306168,1752937851602,-550.0,0.0002411,2]
[373306170,1752937851611,-552.61431351,0.00024116,2]
[373306172,1752937851625,-223.0315306,0.00024123,2]
[373306174,1752937851635,-600.0,0.00024153,2]
[373306176,1752937851644,-2188.9903492,0.00024162,2]
[373306178,1752937851655,-151.0,0.00024164,7]
[373306180,1752937851665,-266.0,0.00024164,7]
[373306182,1752937851678,-199751.69061808,0.00024193,8]
[373307155,1752937884457,171.89030956,7.5e-07,2]
[373307163,1752938103227,679.52759964,0.000164,2]
[373307166,1752938293604,411.051757,0.00013699,2]
[373307168,1752938356681,175.088949,0.00016151,2]
[373307169,1752938403173,505.9831565,0.000164,2]
[373307171,1752938615992,10000.0,0.00016082,2]
[373307172,1752938637303,150.0,0.00015073,2]
[373307173,1752938637727,150.0,0.00015791,2]
[373307174,1752938638156,150.0,0.00016508,2]
[373307178,1752938703852,150.0,0.00015079,2]
[373307188,1752938848469,150.0,0.0001505,2]
[373307190,1752938922469,272.890974,0.0002,120]
[373307206,1752938989860,150.0,0.00015228,2]
[373307207,1752938990293,150.0,0.00015953,2]
[373307208,1752938990851,5000.0,0.0001652,2]
[373307209,1752939005999,5000.0,0.0001652,2]
[373307210,1752939021940,5000.0,0.0001652,2]
[373307244,1752939032506,-214.39477898,0.00016521,2]
[373307246,1752939032515,-150.0,0.00016678,2]
[373307248,1752939032525,-215.31082429,0.00016931,2]
[373307250,1752939032535,-285.49630576,0.00016933,2]
[373307252,1752939032544,-460.0,0.00017031,2]
[373307254,1752939032553,-460.0,0.00017031,2]
[373307256,1752939032564,-460.0,0.00017031,2]
[373307258,1752939032573,-460.0,0.00017031,2]
[373307260,1752939032582,-460.0,0.00017031,2]
[373307262,1752939032592,-799.26,0.00017031,2]
[373307264,1752939032601,-460.0,0.00017031,2]
[373307266,1752939032611,-609.64650681,0.00017032,2]
[373307268,1752939032620,-460.0,0.00017032,2]
[373307269,1752939032630,-460.0,0.00017032,2]
[373307271,1752939032639,-460.0,0.00017032,2]
[373307272,1752939032649,-460.0,0.00017032,2]
[373307273,1752939032658,-462.14548734,0.00017032,2]
[373307274,1752939032668,-460.0,0.00017032,2]
[373307275,1752939032677,-460.0,0.00017032,2]
[373307277,1752939032687,-460.0,0.00017032,2]
[373307279,1752939032696,-469.26217849,0.00017032,2]
[373307280,1752939032706,-460.0,0.00017032,2]
[373307281,1752939032718,-460.0,0.00017032,2]
[373307282,1752939032740,-460.0,0.00017032,2]
[373307283,1752939032750,-460.0,0.00017032,2]
[373307285,1752939032759,-500.0,0.00017032,2]
[373307287,1752939032770,-460.0,0.00017032,2]
[373307288,1752939032779,-500.0,0.00017032,2]
[373307289,1752939032799,-460.0,0.00017032,2]
[373307291,1752939032809,-460.0,0.00017032,2]
[373307292,1752939032819,-460.0,0.00017032,2]
[373307293,1752939032829,-460.0,0.00017032,2]
[373307294,1752939032839,-460.0,0.00017032,2]
[373307295,1752939032849,-460.0,0.00017032,2]
[373307296,1752939032858,-460.0,0.00017032,2]
[373307297,1752939032868,-460.0,0.00017032,2]
[373307298,1752939032878,-460.0,0.00017032,2]
[373307299,1752939032888,-577.93,0.00017032,2]
[373307300,1752939032898,-666.14,0.00017032,2]
[373307301,1752939032907,-460.0,0.00017032,2]
[373307302,1752939032918,-460.0,0.00017032,2]
[373307303,1752939032928,-460.0,0.00017032,2]
[373307304,1752939032939,-460.0,0.00017032,2]
[373307305,1752939032950,-464.82552371,0.00017033,2]
[373307306,1752939032960,-291.96268977,0.00017033,2]
[373307315,1752939038487,-5000.0,0.00016863,2]
[373307316,1752939038498,-168.03731023,0.00017033,2]
[373307317,1752939038508,-460.0,0.00017033,2]
[373307318,1752939038517,-355.520019,0.00017033,2]
[373307319,1752939038527,-417.77495378,0.00017033,2]
[373307320,1752939038537,-460.0,0.00017033,2]
[373307321,1752939038546,-460.0,0.00017033,2]
[373307322,1752939038556,-460.0,0.00017033,2]
[373307323,1752939038565,-460.0,0.00017033,2]
[373307324,1752939038575,-464.89380412,0.00017033,2]
[373307325,1752939038584,-460.0,0.00017033,2]
[373307326,1752939038594,-460.0,0.00017033,2]
[373307327,1752939038603,-460.0,0.00017033,2]
[373307328,1752939038613,-460.0,0.00017033,2]
[373307329,1752939038624,-462.34368805,0.00017033,2]
[373307330,1752939038634,-460.0,0.00017033,2]
[373307331,1752939038644,-578.3388043,0.00017033,2]
[373307332,1752939038653,-460.0,0.00017033,2]
[373307333,1752939038664,-460.0,0.00017033,2]
[373307334,1752939038674,-460.0,0.00017033,2]
[373307335,1752939038684,-460.0,0.00017033,2]
[373307336,1752939038693,-463.49769264,0.00017033,2]
[373307337,1752939038703,-460.0,0.00017033,2]
[373307338,1752939038713,-460.0,0.00017033,2]
[373307339,1752939038723,-462.16852898,0.00017033,2]
[373307340,1752939038733,-460.0,0.00017033,2]
[373307341,1752939038743,-460.0,0.00017033,2]
[373307342,1752939038752,-460.0,0.00017033,2]
[373307343,1752939038762,-558.50960345,0.00017033,2]
[373307344,1752939038771,-400.00000033,0.00017033,2]
[373307345,1752939038781,-460.0,0.00017033,2]
[373307346,1752939038790,-460.0,0.00017033,2]
[373307347,1752939038799,-460.0,0.00017033,2]
[373307348,1752939038809,-460.0,0.00017033,2]
[373307349,1752939038819,-460.0,0.00017033,2]
[373307350,1752939038828,-460.0,0.00017033,2]
[373307351,1752939038837,-460.0,0.00017033,2]
[373307352,1752939038847,-460.0,0.00017033,2]
[373307353,1752939038856,-461.28143089,0.00017033,2]
[373307354,1752939038866,-460.0,0.00017033,2]
[373307355,1752939038876,-500.0,0.00017033,2]
[373307356,1752939038886,-500.0,0.00017033,2]
[373307357,1752939038896,-500.0,0.00017033,2]
[373307358,1752939038906,-500.0,0.00017033,2]
[373307359,1752939038916,-640.52,0.00017033,2]
[373307360,1752939038926,-460.0,0.00017033,2]
[373307361,1752939038936,-460.0,0.00017033,2]
[373307362,1752939038946,-460.0,0.00017033,2]
[373307363,1752939038955,-460.0,0.00017033,2]
[373307364,1752939038965,-460.0,0.00017033,2]
[373307365,1752939038975,-47093.59873847,0.00017034,2]
[373307366,1752939038984,-491.92533785,0.00017073,2]
[373307367,1752939038994,-500.0,0.00017131,2]
[373307368,1752939039004,-460.0,0.00017131,2]
[373307369,1752939039014,-460.0,0.00017131,2]
[373307370,1752939039023,-460.0,0.00017305,2]
[373307371,1752939039033,-460.0,0.00017305,2]
[373307372,1752939039044,-460.0,0.00017305,2]
[373307373,1752939039054,-799.26,0.00017305,2]
[373307374,1752939039065,-460.0,0.00017306,2]
[373307375,1752939039075,-460.0,0.00017306,2]
[373307376,1752939039085,-460.0,0.00017306,2]
[373307377,1752939039095,-460.0,0.00017306,2]
[373307378,1752939039105,-290.82857454,0.00017306,2]
[373307379,1752939039114,-460.0,0.00017306,2]
[373307380,1752939039124,-460.0,0.00017306,2]
[373307381,1752939039134,-577.93,0.00017306,2]
[373307382,1752939039144,-666.14,0.00017306,2]
[373307383,1752939039154,-460.0,0.00017306,2]
[373307384,1752939039163,-460.0,0.00017306,2]
[373307385,1752939039173,-460.0,0.00017306,2]
[373307386,1752939039182,-460.0,0.00017306,2]
[373307387,1752939039192,-460.0,0.00017307,2]
[373307388,1752939039201,-460.0,0.00017307,2]
[373307389,1752939039210,-460.0,0.00017307,2]
[373307390,1752939039219,-240.3396799,0.00017307,2]
[373307391,1752939039230,-460.0,0.00017307,2]
[373307392,1752939039239,-460.0,0.00017307,2]
[373307393,1752939039248,-466.18940997,0.00017307,2]
[373307394,1752939039257,-460.0,0.00017307,2]
[373307395,1752939039268,-460.0,0.00017307,2]
[373307396,1752939039278,-640.52,0.00017307,2]
[373307397,1752939039289,-460.0,0.00017307,2]
[373307398,1752939039298,-460.0,0.00017307,2]
[373307399,1752939039309,-460.0,0.00017307,2]
[373307400,1752939039319,-460.0,0.00017307,2]
[373307401,1752939039329,-460.0,0.00017405,2]
[373307402,1752939039338,-460.0,0.00017405,2]
[373307403,1752939039348,-460.0,0.00017579,2]
[373307404,1752939039358,-460.0,0.00017579,2]
[373307405,1752939039368,-799.26,0.00017579,2]
[373307406,1752939039378,-460.0,0.0001758,2]
[373307407,1752939039388,-460.0,0.0001758,2]
[373307408,1752939039398,-577.93,0.0001758,2]
[373307409,1752939039407,-666.14,0.0001758,2]
[373307410,1752939039417,-460.0,0.0001758,2]
[373307411,1752939039426,-460.0,0.0001758,2]
[373307412,1752939039436,-460.0,0.0001758,2]
[373307413,1752939039445,-460.0,0.0001758,2]
[373307414,1752939039455,-640.52,0.00017581,2]
[373307415,1752939039465,-460.0,0.00017581,2]
[373307416,1752939039476,-460.0,0.00017581,2]
[373307417,1752939039485,-460.0,0.00017581,2]
[373307418,1752939039494,-460.0,0.00017679,2]
[373307419,1752939039504,-460.0,0.00017679,2]
[373307420,1752939039513,-460.0,0.00017853,2]
[373307421,1752939039523,-460.0,0.00017853,2]
[373307422,1752939039533,-799.26,0.00017853,2]
[373307423,1752939039544,-460.0,0.00017854,2]
[373307424,1752939039553,-577.93,0.00017854,2]
[373307425,1752939039563,-666.14,0.00017854,2]
[373307426,1752939039572,-460.0,0.00017854,2]
[373307427,1752939039582,-460.0,0.00017854,2]
[373307428,1752939039592,-460.0,0.00017854,2]
[373307429,1752939039601,-460.0,0.00017854,2]
[373307430,1752939039611,-640.52,0.00017855,2]
[373307431,1752939039621,-460.0,0.00017855,2]
[373307432,1752939039630,-460.0,0.00017855,2]
[373307433,1752939039640,-460.0,0.00017855,2]
[373307434,1752939039649,-3887.07323059,0.000179,2]
[373307435,1752939039659,-460.0,0.00017953,2]
[373307436,1752939039669,-460.0,0.00017953,2]
[373307437,1752939039679,-501.57887198,0.00018063,2]
[373307438,1752939039688,-500.0,0.00018063,2]
[373307439,1752939039699,-500.0,0.00018063,2]
[373307440,1752939039709,-460.0,0.00018127,2]
[373307441,1752939039718,-460.0,0.00018127,2]
[373307442,1752939039731,-799.26,0.00018127,2]
[373307443,1752939039741,-460.0,0.00018128,2]
[373307444,1752939039866,-577.93,0.00018128,2]
[373307445,1752939039876,-666.14,0.00018128,2]
[373307446,1752939039886,-460.0,0.00018128,2]
[373307447,1752939039896,-460.0,0.00018128,2]
[373307448,1752939039906,-460.0,0.00018128,2]
[373307449,1752939039915,-460.0,0.00018128,2]
[373307450,1752939039925,-640.52,0.00018129,2]
[373307451,1752939039934,-460.0,0.00018129,2]
[373307452,1752939039944,-460.0,0.00018129,2]
[373307453,1752939039953,-460.0,0.00018129,2]
[373307454,1752939039964,-504.91324515,0.0001815,2]
[373307455,1752939039973,-428.05015769,0.0001815,2]
[373307470,1752939040839,-71.94984231,0.0001815,2]
[373307472,1752939040849,-150.62900984,0.0001815,2]
[373307474,1752939040859,-500.0,0.0001815,2]
[373307475,1752939040869,-3887.07323038,0.00018176,2]
[373307477,1752939040879,-203.34625219,0.00018227,2]
[373307478,1752939040894,-256.65374781,0.00018227,2]
[373307479,1752939040903,-460.0,0.00018227,2]
[373307480,1752939040913,-548.06828774,0.00018393,2]
[373307481,1752939040924,-336.49026849,0.00018393,2]
[373307482,1752939040934,-460.0,0.00018401,2]
[373307483,1752939040943,-460.0,0.00018401,2]
[373307484,1752939040953,-799.26,0.00018401,2]
[373307485,1752939040963,-460.0,0.00018402,2]
[373307486,1752939040974,-577.93,0.00018402,2]
[373307487,1752939040984,-666.14,0.00018402,2]
[373307488,1752939040994,-460.0,0.00018402,2]
[373307489,1752939041003,-224.92923868,0.00018402,2]
[373307490,1752939041019,-235.07076132,0.00018402,2]
[373307491,1752939041029,-460.0,0.00018402,2]
[373307492,1752939041040,-460.0,0.00018402,2]
[373307493,1752939041050,-640.52,0.00018403,2]
[373307494,1752939041062,-460.0,0.00018403,2]
[373307495,1752939041075,-460.0,0.00018403,2]
[373307496,1752939041086,-460.0,0.00018403,2]
[373307497,1752939041095,-3887.07323038,0.00018452,2]
[373307498,1752939041106,-460.0,0.00018501,2]
[373307499,1752939041117,-460.0,0.00018501,2]
[373307500,1752939041127,-460.0,0.00018675,2]
[373307501,1752939041138,-460.0,0.00018675,2]
[373307502,1752939041148,-799.26,0.00018675,2]
[373307503,1752939041158,-460.0,0.00018676,2]
[373307504,1752939041168,-119.97851684,0.00018676,2]
[373307505,1752939041183,-457.95148316,0.00018676,2]
[373307506,1752939041193,-666.14,0.00018676,2]
[373307507,1752939041203,-460.0,0.00018676,2]
[373307508,1752939041212,-178.19,0.00018676,2]
[373307509,1752939041222,-175.7184399,0.00018676,2]
[373307510,1752939041231,-425.67117061,0.00018676,2]
[373307511,1752939041241,-640.52,0.00018677,2]
[373307512,1752939041252,-460.0,0.00018677,2]
[373307513,1752939041263,-460.0,0.00018677,2]
[373307514,1752939041274,-460.0,0.00018677,2]
[373307515,1752939041284,-394.44,0.00018717,3]
[373307516,1752939041294,-197.22,0.00018717,3]
[373307517,1752939041304,-591.67,0.00018717,3]
[373307518,1752939041314,-3887.07323038,0.00018728,2]
[373307519,1752939041325,-460.0,0.00018775,2]
[373307520,1752939041335,-460.0,0.00018775,2]
[373307521,1752939041345,-214.52603969,0.00018799,2]
[373307522,1752939041355,-11102.32436478,0.00018801,2]
[373307523,1752939041370,-1510.47768586,0.00018801,2]
[373307524,1752939041380,-215.67360783,0.00018801,2]
[373307525,1752939041390,-160.0,0.00018801,2]
[373307526,1752939041399,-839.454303,0.00018801,2]
[373307527,1752939041410,-230.94145789,0.00018801,2]
[373307528,1752939041419,-525.83049785,0.00018801,2]
[373307529,1752939041429,-160.0,0.00018803,2]
[373307530,1752939041438,-236.39117258,0.000189,2]
[373307531,1752939041448,-208.00893753,0.000189,2]
[373307532,1752939041457,-460.0,0.00018949,2]
[373307533,1752939041468,-460.0,0.00018949,2]
[373307534,1752939041477,-799.26,0.00018949,2]
[373307535,1752939041487,-460.0,0.0001895,2]
[373307536,1752939041497,-577.93,0.0001895,2]
[373307537,1752939041506,-666.14,0.0001895,2]
[373307538,1752939041515,-460.0,0.0001895,2]
[373307539,1752939041524,-640.52,0.00018951,2]
[373307540,1752939041534,-460.0,0.00018951,2]
[373307541,1752939041543,-460.0,0.00018951,2]
[373307542,1752939041553,-460.0,0.00018951,2]
[373307543,1752939041562,-3887.07323038,0.00019003,2]
[373307544,1752939041572,-460.0,0.00019049,2]
[373307545,1752939041582,-460.0,0.00019049,2]